bitfinex-derivatives/quotes_BNBF0:USTF0_20250126
["timestamp","ask_amount","ask_price","bid_price","bid_amount"]
[1737877395967,0.28988027,689.94,688.5,1.3777317]
[1737877399064,0.28988027,689.94,688.51,0.26673971]
[1737877400769,0.28988027,689.94,688.52,0.26674153]
[1737877400969,1.08681127,689.77,688.63,1.08724514]
[1737877401873,1.08681127,689.77,688.64,0.26674153]
[1737877403070,1.08681127,689.77,688.63,1.08724514]
[1737877403269,1.08681127,689.77,688.64,0.266738]
[1737877404667,1.08681127,689.78,688.64,1.35398314]
[1737877404869,1.08681127,689.78,688.65,0.266738]
[1737877405271,1.08681127,689.78,688.64,1.08724514]
[1737877407676,1.08681127,689.79,688.63,1.08724514]
[1737877411271,0.28988027,689.94,688.5,0.29048656]
[1737877411272,1.08681127,689.84,688.56,1.08724514]
[1737877411476,1.37673357,689.84,688.57,0.26674933]
[1737877411678,1.37673357,689.84,688.56,1.08724514]
[1737877411874,1.37673357,689.84,688.57,0.26674719]
[1737877412671,1.37673357,689.84,688.56,1.08724514]
[1737877412871,1.37673357,689.84,688.57,0.26674886]
[1737877415377,1.08681127,689.83,688.57,0.26674886]
[1737877415573,1.08681127,689.83,688.56,1.08724514]
[1737877416684,1.08681127,689.83,688.57,0.26674748]
[1737877418283,0.2899223,689.84,688.57,0.26674748]
[1737877418485,0.2899223,689.84,688.53,0.26674748]
[1737877418680,0.2899223,689.84,688.54,0.26674748]
[1737877418881,0.2899223,689.84,688.55,0.26674748]
[1737877419083,0.2899223,689.84,688.56,0.26674748]
[1737877419284,0.2899223,689.84,688.57,0.26674748]
[1737877419483,0.2899223,689.84,688.53,0.26674748]
[1737877419784,0.2899223,689.84,688.54,0.26674748]
[1737877419983,0.2899223,689.84,688.53,0.26674748]
[1737877420178,0.2899223,689.84,688.54,0.26674748]
[1737877420385,0.2899223,689.84,688.52,1.08724514]
[1737877421282,1.37673357,689.84,688.59,1.08724514]
[1737877424191,1.37673357,689.84,688.5,0.29048656]
[1737877424192,0.2899223,689.84,688.5,0.29048656]
[1737877430391,0.2899223,689.84,688.51,0.26673091]
[1737877430690,0.2899223,689.84,688.5,0.29048656]
[1737877430890,0.2899223,689.84,688.51,0.26673542]
[1737877434493,0.2899223,689.84,688.59,1.08724514]
[1737877437496,0.2899223,689.84,688.57,1.08724514]
[1737877440006,0.2899223,689.84,688.56,1.08724514]
[1737877443700,0.2899223,689.84,688.57,1.08724514]
[1737877450010,0.2899223,689.84,688.59,1.08724514]
[1737877450610,0.2899223,689.84,688.6,0.26673568]
[1737877452814,1.08681127,689.74,688.69,1.08724514]
[1737877457023,1.08681127,689.71,688.72,1.08724514]
[1737877459920,1.08681127,689.74,688.69,1.08724514]
[1737877463419,1.08681127,689.74,688.66,1.08724514]
[1737877467227,1.08681127,689.74,688.66,1.07472034]
[1737877467528,0.2899223,689.84,688.5,0.29048656]
[1737877470429,1.08681127,689.77,688.5,0.29048656]
[1737877470629,0.28995592,689.76,688.5,0.29048656]
[1737877477333,0.28995592,689.76,688.51,0.26679129]
[1737877480034,1.08681127,689.75,688.51,0.26679129]
[1737877480231,0.28996433,689.74,688.51,0.26679129]
[1737877482435,0.28996433,689.74,688.5,0.29048656]
[1737877482632,0.28996433,689.74,688.51,0.26679214]
[1737877483031,1.3767756,689.74,688.51,0.26679214]
[1737877484734,1.3767756,689.74,688.5,0.29048656]
[1737877488436,0.28996433,689.74,688.5,0.29048656]
[1737877505953,1.08681127,689.65,688.5,0.29048656]
[1737877507753,1.08681127,689.66,688.5,0.29048656]
[1737877516162,1.08233375,689.66,688.5,0.29048656]
[1737877516365,0.28996433,689.74,688.5,0.29048656]
[1737877516366,1.08233375,689.72,688.5,0.29048656]
[1737877516561,1.37230649,689.72,688.5,0.29048656]
[1737877518967,0.28997274,689.72,688.5,0.29048656]
[1737877522262,0.28997274,689.72,688.51,0.26679026]
[1737877522771,0.28997274,689.72,688.52,0.26679026]
[1737877522970,0.28997274,689.72,688.51,0.26679026]
[1737877523165,0.28997274,689.72,688.52,0.26679026]
[1737877523367,0.28997274,689.72,688.51,0.26679026]
[1737877523565,0.28997274,689.72,688.52,0.26679026]
[1737877523764,0.28997274,689.72,688.5,0.29048656]
[1737877523765,0.28997274,689.72,688.51,0.26679026]
[1737877523968,0.28997274,689.72,688.52,0.26679026]
[1737877524166,0.28997274,689.72,688.51,0.26679026]
[1737877524369,0.28997274,689.72,688.52,0.26679026]
[1737877524571,0.28997274,689.72,688.51,0.26679026]
[1737877524769,0.28997274,689.72,688.53,0.26679026]
[1737877525068,0.28997274,689.72,688.54,0.26679026]
[1737877525269,0.28997274,689.72,688.51,0.26679026]
[1737877525670,1.08681127,689.68,688.51,0.26679026]
[1737877526577,1.08681127,689.68,688.5,0.29048656]
[1737877529368,0.28997274,689.72,688.5,0.29048656]
[1737877553895,0.28997274,689.72,688.51,0.26679245]
[1737877554491,0.28997274,689.72,688.5,0.29048656]
[1737877554689,0.28997274,689.72,688.51,0.26679541]
[1737877555698,0.28997274,689.72,688.5,0.29048656]
[1737877556194,0.28997274,689.72,688.51,0.26679566]
[1737877558700,1.08681127,689.69,688.51,0.26679566]
[1737877558900,0.28998956,689.68,688.51,0.26679566]
[1737877560097,0.28998956,689.68,688.5,0.29048656]
[1737877591421,1.08567422,689.67,688.5,0.29048656]
[1737877591617,0.28999797,689.66,688.5,0.29048656]
[1737877594626,1.08567422,689.63,688.5,0.29048656]
[1737877594826,0.29001479,689.62,688.5,0.29048656]
[1737877597025,1.08567422,689.6,688.5,0.29048656]
[1737877599728,1.08567422,689.6,688.5,1.378437]
[1737877603426,0.29001479,689.62,688.5,0.29048656]
[1737877613237,0.29001479,689.62,688.51,0.26674596]
[1737877614438,0.29001479,689.62,688.52,0.26674392]
[1737877614639,0.29001479,689.62,688.53,0.26674392]
[1737877614844,0.29001479,689.62,688.54,0.26674392]
[1737877615039,0.29001479,689.62,688.55,0.26674344]
[1737877615342,0.29001479,689.62,688.5,0.29048656]
[1737877615343,0.29001479,689.62,688.56,0.26674344]
[1737877615536,0.29001479,689.62,688.57,0.26674344]
[1737877615840,0.29001479,689.62,688.58,0.26674344]
[1737877616039,0.29001479,689.62,688.59,0.26674344]
[1737877616232,0.29001479,689.62,688.51,0.26674344]
[1737877616434,0.29001479,689.62,688.52,0.26674344]
[1737877616640,0.29001479,689.62,688.51,0.26674344]
[1737877616838,0.29001479,689.62,688.52,0.26674234]
[1737877617039,0.29001479,689.62,688.51,0.26674234]
[1737877618539,0.29001479,689.62,688.55,1.08795044]
[1737877618839,0.29001479,689.62,688.56,0.26674234]
[1737877620544,0.29001479,689.62,688.57,0.26674323]
[1737877620744,0.29001479,689.62,688.58,0.26674323]
[1737877621042,0.29001479,689.62,688.59,0.26674323]
[1737877621243,0.29001479,689.62,688.55,0.26674323]
[1737877621441,0.29001479,689.62,688.56,0.26674323]
[1737877621643,0.29001479,689.62,688.57,0.26674323]
[1737877621844,0.29001479,689.62,688.58,0.26674735]
[1737877622039,0.29001479,689.62,688.55,0.26674735]
[1737877622243,0.29001479,689.62,688.56,0.26674735]
[1737877622543,0.29001479,689.62,688.55,0.26674735]
[1737877622743,0.29001479,689.62,688.56,0.26674735]
[1737877622945,0.29001479,689.62,688.55,0.26674735]
[1737877623140,0.29001479,689.62,688.56,0.26674735]
[1737877623342,0.29001479,689.62,688.57,0.26674735]
[1737877623543,0.29001479,689.62,688.55,0.26674735]
[1737877623744,0.29001479,689.62,688.56,0.26674735]
[1737877623945,0.29001479,689.62,688.54,1.08795044]
[1737877623946,0.29001479,689.62,688.55,0.26674735]
[1737877624244,0.29001479,689.62,688.56,0.26674735]
[1737877624545,0.29001479,689.62,688.57,0.26674735]
[1737877624739,0.29001479,689.62,688.55,0.26674735]
[1737877624938,0.29001479,689.62,688.56,0.26674735]
[1737877625140,0.29001479,689.62,688.55,0.26674735]
[1737877625339,0.29001479,689.62,688.56,0.26674735]
[1737877625740,0.29001479,689.62,688.54,1.08795044]
[1737877625741,0.29001479,689.62,688.57,0.26674735]
[1737877625946,0.29001479,689.62,688.58,0.26674735]
[1737877626247,0.29001479,689.62,688.59,0.26674735]
[1737877626445,0.29001479,689.62,688.6,0.26674735]
[1737877626641,0.29001479,689.62,688.61,0.26674735]
[1737877626844,0.29001479,689.62,688.56,0.26674735]
[1737877627143,0.29001479,689.62,688.57,0.26672626]
[1737877627344,0.29001479,689.62,688.58,0.26672274]
[1737877627641,0.29001479,689.62,688.59,0.26672274]
[1737877627943,0.29001479,689.62,688.6,0.26672274]
[1737877628247,0.29001479,689.62,688.61,0.26672274]
[1737877628446,0.29001479,689.62,688.56,0.26672274]
[1737877628747,0.29001479,689.62,688.5,0.29048656]
[1737877628748,0.29001479,689.62,688.57,0.26672274]
[1737877629047,0.29001479,689.62,688.54,1.08795044]
[1737877629246,0.29001479,689.62,688.55,0.26672181]
[1737877632851,0.29001479,689.62,688.54,1.08795044]
[1737877633148,0.29001479,689.62,688.55,0.2667001]
[1737877634645,0.29001479,689.62,688.56,0.26670266]
[1737877634849,0.29001479,689.62,688.57,0.26670266]
[1737877635045,0.29001479,689.62,688.58,0.26670266]
[1737877635246,0.29001479,689.62,688.55,0.26670266]
[1737877635551,0.29001479,689.62,688.5,0.29048656]
[1737877635552,0.29001479,689.62,688.56,1.3546531]
[1737877635752,0.29001479,689.62,688.57,0.26670266]
[1737877638347,0.29001479,689.62,688.59,1.08795044]
[1737877638653,0.29001479,689.62,688.6,0.26670181]
[1737877641156,0.29001479,689.62,688.61,1.08795044]
[1737877641351,0.29001479,689.62,688.62,0.26670181]
[1737877644259,0.29001479,689.62,688.65,1.08795044]
[1737877644453,0.29001479,689.62,688.66,0.26670181]
[1737877645659,0.29001479,689.62,688.65,1.08795044]
[1737877645959,0.29001479,689.62,688.66,0.26670519]
[1737877647359,0.29001479,689.62,688.66,1.35465563]
[1737877647660,0.29001479,689.62,688.66,1.08795044]
[1737877647860,0.29001479,689.62,688.67,0.26670344]
[1737877648253,0.29001479,689.62,688.66,1.08795044]
[1737877648456,0.29001479,689.62,688.67,0.26670391]
[1737877649659,0.29001479,689.62,688.68,1.08795044]
[1737877649853,0.29001479,689.62,688.69,0.26670391]
[1737877652463,0.29001479,689.62,688.72,1.08795044]
[1737877652662,0.29001479,689.62,688.73,0.26670391]
[1737877653564,0.29001479,689.62,688.74,0.26670333]
[1737877653767,0.29001479,689.62,688.73,0.26670333]
[1737877654063,0.29001479,689.62,688.74,0.26670333]
[1737877654264,0.29001479,689.62,688.73,0.26670333]
[1737877655663,0.29001479,689.62,688.73,1.35465377]
[1737877655861,0.29001479,689.62,688.74,0.26670333]
[1737877658367,0.29001479,689.62,688.75,1.08795044]
[1737877658661,0.29001479,689.62,688.76,0.26670333]
[1737877660767,0.29001479,689.62,688.75,1.08795044]
[1737877661067,0.29001479,689.62,688.76,0.26670278]
[1737877661262,0.29001479,689.62,688.75,1.08795044]
[1737877661469,0.29001479,689.62,688.77,1.08795044]
[1737877668675,0.29001479,689.62,688.76,1.08795044]
[1737877673982,0.29001479,689.62,688.78,1.08795044]
[1737877677080,0.29001479,689.62,688.79,1.08795044]
[1737877679786,0.29001479,689.62,688.83,1.08795044]
[1737877683495,0.29001479,689.62,688.82,1.08795044]
[1737877686895,0.29001479,689.62,688.78,1.08795044]
[1737877691800,0.29001479,689.62,688.77,1.08795044]
[1737877694502,0.29001479,689.62,688.65,1.08795044]
[1737877697204,0.29001479,689.62,688.66,1.08795044]
[1737877700198,0.29001479,689.62,688.67,1.08795044]
[1737877700800,0.29001479,689.62,688.68,0.2667101]
[1737877703304,0.29001479,689.62,688.75,1.08795044]
[1737877706110,0.29001479,689.62,688.51,0.29048234]
[1737877706111,0.29001479,689.62,688.69,1.08795044]
[1737877706704,1.08567422,689.86,688.69,1.08795044]
[1737877709110,1.08567422,690.09,688.63,1.08795044]
[1737877709309,0.28982146,690.08,688.63,1.08795044]
[1737877711811,0.28982146,690.08,688.61,1.08795044]
[1737877714414,0.28982146,690.08,688.6,1.08795044]
[1737877716607,1.08567422,690.07,688.6,1.08795044]
[1737877716809,0.28982986,690.06,688.6,1.08795044]
[1737877719314,0.28982986,690.06,688.59,1.08795044]
[1737877721706,1.08567422,690.04,688.59,1.08795044]
[1737877721911,0.28984247,690.03,688.59,1.08795044]
[1737877722515,0.28984247,690.03,688.6,0.26670834]
[1737877724210,0.28984247,690.03,688.59,1.08795044]
[1737877724415,0.28984247,690.03,688.6,0.26670848]
[1737877725519,1.08567422,689.95,688.65,1.08795044]
[1737877725818,0.28988027,689.94,688.65,1.08795044]
[1737877726717,0.28988027,689.94,688.66,0.26670916]
[1737877728509,0.28988027,689.94,688.67,0.26670916]
[1737877728712,0.28988027,689.94,688.65,0.26670916]
[1737877728915,0.28988027,689.94,688.66,0.26670916]
[1737877729115,0.28988027,689.94,688.65,0.26670916]
[1737877729316,0.28988027,689.94,688.66,0.26670916]
[1737877729517,0.28988027,689.94,688.65,0.26670916]
[1737877729719,0.28988027,689.94,688.66,0.26670916]
[1737877730020,0.28988027,689.94,688.67,0.26670916]
[1737877730219,0.28988027,689.94,688.65,0.26670916]
[1737877730520,0.28988027,689.94,688.66,0.26670916]
[1737877730722,0.28988027,689.94,688.64,1.08795044]
[1737877730723,0.28988027,689.94,688.65,0.26670916]
[1737877730915,0.28988027,689.94,688.66,0.26670916]
[1737877731121,0.28988027,689.94,688.65,0.26670916]
[1737877731322,1.08567422,689.85,688.71,1.08795044]
[1737877733821,1.08567422,689.86,688.71,1.08795044]
[1737877735723,1.08567422,689.86,688.72,0.26670795]
[1737877736320,1.08567422,689.84,688.72,1.35465839]
[1737877736524,1.08567422,689.84,688.73,0.26670795]
[1737877736824,1.08567422,689.84,688.72,1.08795044]
[1737877739027,1.08567422,689.84,688.73,1.08795044]
[1737877742530,1.08567422,689.81,688.74,1.08795044]
[1737877746622,0.28988027,689.94,688.62,1.08795044]
[1737877749128,0.28988027,689.94,688.64,1.08795044]
[1737877752223,0.28988027,689.94,688.65,1.08795044]
[1737877752423,0.28988027,689.94,688.66,0.26670763]
[1737877754228,0.28988027,689.94,688.67,0.26671004]
[1737877754429,0.28988027,689.94,688.66,0.26671004]
[1737877755225,0.28988027,689.94,688.81,1.08795044]
[1737877755431,1.08567422,689.74,688.81,1.08795044]
[1737877758430,1.08567422,689.73,688.81,1.08795044]
[1737877761426,0.28988027,689.94,688.78,1.08795044]
[1737877761427,1.08567422,689.77,688.78,1.08795044]
[1737877764632,0.28988027,689.94,688.77,1.08795044]
[1737877764633,1.08567422,689.79,688.77,1.08795044]
[1737877767840,0.28988027,689.94,688.51,0.29048234]
[1737877767841,1.08567422,689.9,688.7,1.08795044]
[1737877768238,0.28990128,689.89,688.7,1.08795044]
[1737877770440,1.3755755,689.89,688.7,1.08795044]
[1737877773240,0.28990128,689.89,688.72,1.08795044]
[1737877776444,0.28990128,689.89,688.66,1.08795044]
[1737877779849,1.3755755,689.89,688.71,1.08795044]
[1737877782049,0.28990128,689.89,688.68,1.08795044]
[1737877784343,0.28990128,689.89,688.51,0.29048234]
[1737877784344,0.28990128,689.89,688.66,1.08795044]
[1737877790655,0.28990128,689.89,688.68,1.08795044]
[1737877793856,0.28990128,689.89,688.69,1.08795044]
[1737877794161,0.28990128,689.89,688.7,0.2667105]
[1737877798164,1.08567422,689.72,688.78,1.08795044]
[1737877799964,1.08567422,689.73,688.78,1.08795044]
[1737877803560,0.28990128,689.89,688.76,1.08795044]
[1737877803561,1.08567422,689.75,688.76,1.08795044]
[1737877806263,1.08567422,689.75,688.56,1.08724514]
[1737877806264,1.08567422,689.87,688.58,1.08795044]
[1737877806465,0.28991389,689.86,688.58,1.08795044]
[1737877810772,0.28991389,689.86,688.51,0.29048234]
[1737877811870,0.28991389,689.86,688.52,0.26673374]
[1737877813470,0.28991389,689.86,688.52,1.35468418]
[1737877813670,0.28991389,689.86,688.52,1.08795044]
[1737877816975,0.28991389,689.86,688.51,0.29048234]
[1737877817174,0.28991389,689.86,688.52,0.26673433]
[1737877820475,1.08567422,689.8,688.61,1.08795044]
[1737877820675,1.08567422,689.8,688.62,0.26673433]
[1737877821074,1.08567422,689.8,688.61,1.08795044]
[1737877821281,1.08567422,689.8,688.62,0.26673424]
[1737877822883,0.28991389,689.86,688.62,0.26673424]
[1737877822884,1.08567422,689.81,688.62,0.26673424]
[1737877826486,1.08567422,689.84,688.62,0.26673424]
[1737877826686,0.2899265,689.83,688.62,0.26673424]
[1737877828188,0.2899265,689.83,688.63,0.26673587]
[1737877828390,0.2899265,689.83,688.62,0.26673587]
[1737877828585,0.2899265,689.83,688.63,0.26673587]
[1737877829592,1.08567422,689.79,688.63,0.26673587]
[1737877829793,1.08567422,689.79,688.64,1.08795044]
[1737877830587,1.08567422,689.79,688.65,0.26673587]
[1737877830784,1.08567422,689.79,688.64,1.08795044]
[1737877833393,0.2899265,689.83,688.66,1.08795044]
[1737877833394,1.08567422,689.77,688.66,1.08795044]
[1737877836892,0.2899265,689.83,688.51,0.29048234]
[1737877836893,0.2899265,689.83,688.62,1.08795044]
[1737877840696,1.37560072,689.83,688.64,1.08795044]
[1737877841797,1.37560072,689.83,688.65,0.26671862]
[1737877844495,1.08567422,689.72,688.76,1.08795044]
[1737877848406,1.08567422,689.8,688.71,1.08795044]
[1737877851498,0.2899265,689.83,688.67,1.08795044]
[1737877853801,0.2899265,689.83,688.68,0.26671929]
[1737877854002,0.2899265,689.83,688.67,1.08795044]
[1737877854303,0.2899265,689.83,688.68,0.26671931]
[1737877857900,1.08567422,689.78,688.71,1.08795044]
[1737877861304,1.08567422,689.82,688.66,1.08795044]
[1737877865507,1.08567422,689.81,688.66,1.08795044]
[1737877866308,1.08567422,689.81,688.67,0.26672632]
[1737877868211,1.08567422,689.77,688.69,1.08795044]
[1737877868710,1.08567422,689.77,688.7,0.26672563]
[1737877871807,1.08567422,689.71,688.74,1.08795044]
[1737877874712,0.2899265,689.83,688.74,1.08795044]
[1737877874713,1.08567422,689.7,688.74,1.08795044]
[1737877878017,1.08567422,689.7,688.75,1.08795044]
[1737877885917,1.08567422,689.7,688.76,1.08795044]
[1737877890028,1.08567422,689.69,688.75,1.08795044]
[1737877892520,1.08567422,689.69,688.76,1.08795044]
[1737877896130,1.08567422,689.69,688.77,1.08795044]
[1737877898631,1.08567422,689.69,688.76,1.08795044]
[1737877901331,1.08567422,689.69,688.77,1.08795044]
[1737877904736,1.08567422,689.68,688.77,1.08795044]
[1737877914843,1.08567422,689.69,688.78,1.08795044]
[1737877921650,0.2899265,689.83,688.64,1.08795044]
[1737877925856,0.2899265,689.83,688.63,1.08795044]
[1737877927259,0.2899265,689.83,688.64,0.26669943]
[1737877928752,0.2899265,689.83,688.65,0.26669943]
[1737877928952,0.2899265,689.83,688.66,0.26669943]
[1737877929158,0.2899265,689.83,688.67,0.26669943]
[1737877929353,0.2899265,689.83,688.63,0.26669943]
[1737877929553,0.2899265,689.83,688.64,0.26669943]
[1737877929755,0.2899265,689.83,688.63,0.26669943]
[1737877930355,0.2899265,689.83,688.65,0.26669943]
[1737877930658,0.2899265,689.83,688.62,1.08795044]
[1737877930853,0.2899265,689.83,688.63,0.26670055]
[1737877931658,0.2899265,689.83,688.68,1.08795044]
[1737877934961,0.2899265,689.83,688.67,1.08795044]
[1737877935357,0.2899265,689.83,688.68,0.26667104]
[1737877938961,0.2899265,689.83,688.67,0.26667104]
[1737877939163,0.2899265,689.83,688.68,0.26667104]
[1737877939363,0.2899265,689.83,688.67,0.26667104]
[1737877939559,0.2899265,689.83,688.68,0.26667104]
[1737877939758,0.2899265,689.83,688.69,0.26666206]
[1737877939956,0.2899265,689.83,688.67,0.26666206]
[1737877940157,0.2899265,689.83,688.68,0.26666206]
[1737877940355,0.2899265,689.83,688.67,0.26666206]
[1737877940563,0.2899265,689.83,688.68,0.26666231]
[1737877940756,0.2899265,689.83,688.67,0.26666231]
[1737877940963,0.2899265,689.83,688.68,0.26666231]
[1737877941162,0.2899265,689.83,688.67,0.26666231]
[1737877941366,0.2899265,689.83,688.68,0.26666231]
[1737877941567,0.2899265,689.83,688.67,0.26666231]
[1737877943769,0.2899265,689.83,688.69,1.08795044]
[1737877944867,0.2899265,689.83,688.7,0.26666231]
[1737877947268,0.2899265,689.83,688.74,1.08795044]
[1737877947469,0.2899265,689.83,688.75,0.26666231]
[1737877948273,0.2899265,689.83,688.74,1.08795044]
[1737877948477,0.2899265,689.83,688.75,0.26667692]
[1737877949170,0.2899265,689.83,688.74,1.08795044]
[1737877949171,0.2899265,689.83,688.76,0.26667487]
[1737877949369,0.2899265,689.83,688.75,0.26667487]
[1737877949574,0.2899265,689.83,688.76,0.26667487]
[1737877949774,0.2899265,689.83,688.77,0.26667487]
[1737877951376,0.2899265,689.83,688.78,0.26667487]
[1737877951599,0.2899265,689.83,688.76,0.26667487]
[1737877951778,0.2899265,689.83,688.77,0.26667487]
[1737877951971,0.2899265,689.83,688.76,0.26667487]
[1737877952175,0.2899265,689.83,688.77,0.26667487]
[1737877952372,0.2899265,689.83,688.76,0.26667487]
[1737877952575,0.2899265,689.83,688.77,0.26667487]
[1737877952776,0.2899265,689.83,688.78,0.26667487]
[1737877953078,0.2899265,689.83,688.79,0.26667487]
[1737877953279,0.2899265,689.83,688.76,0.26667487]
[1737877955578,0.2899265,689.83,688.79,1.08795044]
[1737877955779,0.2899265,689.83,688.8,0.26667487]
[1737877957680,0.2899265,689.83,688.79,1.08795044]
[1737877957882,0.2899265,689.83,688.8,0.26667777]
[1737877959281,0.2899265,689.83,688.77,0.26667777]
[1737877959478,0.2899265,689.83,688.76,1.08795044]
[1737877959677,0.2899265,689.83,688.77,0.26667669]
[1737877961986,0.2899265,689.83,688.77,1.35462713]
[1737877962186,0.2899265,689.83,688.78,0.26667669]
[1737877962887,0.2899265,689.83,688.77,1.08795044]
[1737877963088,0.2899265,689.83,688.78,0.26668239]
[1737877965290,0.2899265,689.83,688.78,1.35463283]
[1737877965489,0.2899265,689.83,688.79,0.26668239]
[1737877967189,0.2899265,689.83,688.84,1.08795044]
[1737877977197,0.2899265,689.83,688.83,1.08795044]
[1737877980396,0.2899265,689.83,688.84,1.08795044]
[1737877986299,0.2899265,689.83,688.78,1.08795044]
[1737877989802,0.2899265,689.83,688.63,0.29043172]
[1737877989803,0.2899265,689.83,688.79,1.08795044]
[1737877992207,0.2899265,689.83,688.76,1.08795044]
[1737877995116,0.2899265,689.83,688.81,1.08795044]
[1737877998616,0.2899265,689.83,688.77,1.08795044]
[1737878003215,0.2899265,689.83,688.78,0.2666698]
[1737878004318,0.2899265,689.83,688.8,1.08795044]
[1737878006013,0.2899265,689.83,688.81,0.2666712]
[1737878006716,0.2899265,689.83,688.83,1.08795044]
[1737878006920,0.2899265,689.83,688.84,0.26667102]
[1737878007821,0.2899265,689.83,688.83,1.08795044]
[1737878008020,0.2899265,689.83,688.84,0.26667365]
[1737878010321,0.2899265,689.83,688.87,1.08795044]
[1737878017127,0.2899265,689.83,688.89,1.08795044]
[1737878024037,0.2899265,689.83,688.91,1.08795044]
[1737878024038,1.37560072,689.83,688.91,1.08795044]
[1737878027139,0.2899265,689.83,688.89,1.08795044]
[1737878027738,1.08567422,689.84,688.89,1.08795044]
[1737878030541,1.08567422,689.86,688.88,1.08795044]
[1737878033944,1.08567422,690.04,688.77,1.08795044]
[1737878036940,1.08567422,690.12,688.72,1.08795044]
[1737878040447,1.08567422,690.12,688.32,1.08724514]
[1737878040448,1.08567422,690.11,688.78,1.08795044]
[1737878043555,1.08567422,690.12,688.76,1.08795044]
[1737878045253,1.08567422,690.12,688.77,0.26665482]
[1737878047863,1.08567422,690.12,688.78,0.26663872]
[1737878048064,1.08567422,690.12,688.77,0.26663872]
[1737878048265,1.08567422,690.12,688.78,0.26663872]
[1737878048458,1.08567422,690.12,688.76,1.08795044]
[1737878048662,1.08567422,690.12,688.77,0.26663804]
[1737878050964,2.21890634,690.81,688.77,0.26663804]
[1737878050965,1.08567422,690.07,688.86,1.08795044]
[1737878053863,1.08567422,690.08,688.82,1.08795044]
[1737878054056,1.08567422,690.08,688.83,0.26663809]
[1737878056369,1.08567422,690.06,688.84,1.08795044]
[1737878056668,1.08567422,690.06,688.85,0.26663809]
[1737878057868,1.08567422,690.06,688.86,0.26663842]
[1737878058063,1.08567422,690.06,688.87,0.26663842]
[1737878058269,1.08567422,690.06,688.88,0.26663842]
[1737878058466,1.08567422,690.06,688.85,0.26663842]
[1737878058970,1.08567422,690.02,688.87,1.08795044]
[1737878059271,1.08567422,690.02,688.88,0.26663842]
[1737878061976,1.08567422,690.0,688.88,0.26663842]
[1737878065076,1.08567422,689.95,688.91,1.08795044]
[1737878065471,1.08567422,689.95,688.92,0.26663842]
[1737878065677,1.08567422,689.95,688.91,1.08795044]
[1737878067075,1.08567422,689.96,688.9,1.08795044]
[1737878067277,1.08567422,689.96,688.91,0.26664061]
[1737878068578,1.08567422,689.96,688.9,1.08795044]
[1737878068976,1.08567422,689.96,688.91,0.26664546]
[1737878069276,1.08567422,689.96,688.9,1.08795044]
[1737878069476,2.21890634,690.46,688.9,1.08795044]
[1737878069477,1.08567422,689.95,688.91,0.26664444]
[1737878070675,1.08567422,689.95,688.9,1.08795044]
[1737878071273,1.08567422,689.95,688.91,0.26664083]
[1737878072081,1.08567422,689.93,688.92,1.08795044]
[1737878074880,1.08567422,689.92,688.92,1.08795044]
[1737878075477,1.08567422,689.92,688.93,0.26664111]
[1737878076081,1.08567422,689.92,688.92,1.08795044]
[1737878076282,1.08567422,689.92,688.93,0.26663928]
[1737878077483,2.21890634,690.42,688.93,0.26663928]
[1737878077484,1.08567422,689.91,688.95,1.08795044]
[1737878080586,1.08567422,690.15,688.8,1.08795044]
[1737878080786,0.28979627,690.14,688.8,1.08795044]
[1737878086792,1.37547049,690.14,688.8,1.08795044]
[1737878089995,0.28979627,690.14,688.78,1.08795044]
[1737878090195,0.28979627,690.14,688.79,0.26663375]
[1737878092701,1.08567422,690.1,688.85,1.08795044]
[1737878093002,1.37548729,690.1,688.85,1.08795044]
[1737878095503,0.28981307,690.1,688.85,1.08795044]
[1737878096602,0.28981307,690.1,688.86,0.26663878]
[1737878098201,0.28981307,690.1,688.27,1.30469417]
[1737878098202,1.08567422,689.95,688.93,1.08795044]
[1737878101005,1.08567422,689.96,688.92,1.08795044]
[1737878103604,1.08567422,689.93,688.94,1.08795044]
[1737878106906,1.08567422,689.97,688.92,1.08795044]
[1737878110920,1.08567422,689.98,688.91,1.08795044]
[1737878113414,1.08567422,689.98,688.7,1.08724514]
[1737878113415,1.08567422,690.03,688.88,1.08795044]
[1737878119526,1.08567422,690.01,688.9,1.08795044]
[1737878119728,1.08567422,690.01,688.91,0.2666372]
[1737878121932,1.08567422,690.01,688.92,0.26663707]
[1737878122126,1.08567422,690.01,688.91,0.26663707]
[1737878122423,1.08681127,689.99,688.97,1.08795044]
[1737878122624,1.08567422,689.9,688.97,1.08795044]
[1737878125631,0.28981307,690.1,680.82,8.70393482]
[1737878125632,0.28981307,690.1,688.72,1.08795044]
[1737878132634,0.28981307,690.1,688.73,0.26664027]
[1737878135232,1.08567422,690.08,688.84,1.08795044]
[1737878139037,1.08567422,690.07,688.85,1.08795044]
[1737878141833,0.28981307,690.1,688.86,1.08795044]
[1737878141834,1.08567422,690.05,688.86,1.08795044]
[1737878145040,0.28981307,690.1,688.77,1.08795044]
[1737878146744,0.28981307,690.1,688.78,0.26662721]
[1737878146944,0.28981307,690.1,688.77,1.08795044]
[1737878148044,0.28981307,690.1,688.78,1.08795044]
[1737878151847,0.28981307,690.1,688.82,1.08795044]
[1737878152847,0.28981307,690.1,688.83,0.26663819]
[1737878153048,0.28981307,690.1,688.82,1.08795044]
[1737878153249,0.28981307,690.1,688.83,0.26663729]
[1737878154543,1.08567422,689.99,688.91,1.08795044]